[Event "DVM U10 2024"]
[Site "Duesseldorf"]
[Date "2024.12.27"]
[Round "1"]
[White "Pawlus, Daniel"]
[Black "Städler, Jannis"]
[Result "1-0"]
[ECO "D04"]
[WhiteElo "1521"]
[BlackElo "1082"]
[Annotator "NA RC"]
[PlyCount "113"]
[EventDate "2024.12.23"]
[EventType "team-tourn"]
[EventRounds "7"]
[EventCountry "GER"]
[SourceTitle "playchess.com"]
[Source "ChessBase"]
[SourceQuality "1"]
[TimeControl "3300+5"]

1. d4 {[%emt 0:00:02]} d5 {[%emt 0:00:13]} 2. Nf3 {[%emt 0:00:10]} Bg4 {[%emt 0:00:15]} 3. e3 {[%emt 0:01:54]} Nf6 {[%emt 0:00:15]} 4. c4 {[%emt 0:03:09]} e6 {[%emt 0:01:05]} 5. Nc3 {[%emt 0:04:24]} Bb4 {[%emt 0:00:22]} 6. Bd2 {[%emt 0:01:40]} Ne4 {[%emt 0:00:16]} 7. Nxe4 {[%emt 0:01:49]} Bxd2+ {[%emt 0:00:11]} 8. Nexd2 {[%emt 0:00:09]} O-O {[%emt 0:00:48]} 9. Be2 {[%emt 0:01:30]} c6 {[%emt 0:01:09]} 10. O-O {[%emt 0:01:42]} Nd7 {[%emt 0:01:18]} 11. Qb3 {[%emt 0:03:40]} Rb8 {[%emt 0:00:35]} 12. cxd5 {[%emt 0:01:42]} cxd5 {[%emt 0:00:31]} 13. Rac1 {[%emt 0:01:31]} Qa5 {[%emt 0:00:31]} 14. Qb5 {[%emt 0:02:37]} Qd8 {[%emt 0:00:43]} 15. Rc2 {[%emt 0:02:01]} a6 {[%emt 0:00:15]} 16. Qa4 {[%emt 0:01:03]} b5 {[%emt 0:00:11]} 17. Qxa6 {[%emt 0:00:41]} Rb6 {[%emt 0:05:23]} 18. Qa3 {[%emt 0:01:35]} Bf5 {[%emt 0:00:43]} 19. Rcc1 {[%emt 0:00:57]} b4 {[%emt 0:04:34]} 20. Qa4 {[%emt 0:01:08]} Qa8 {[%emt 0:01:27]} 21. Qxd7 {[%emt 0:01:04]} Rd8 {[%emt 0:00:19]} 22. Qc7 {[%emt 0:00:53]} Rb7 {[%emt 0:00:16]} 23. Qc5 {[%emt 0:01:07]} e5 {[%emt 0:00:28]} 24. Nxe5 {[%emt 0:00:46]} Rc8 {[%emt 0:00:26]} 25. Qxd5 {[%emt 0:00:25]} Rd8 {[%emt 0:01:19]} 26. Qf3 {[%emt 0:01:02]} Be6 {[%emt 0:00:14]} 27. Bc4 {[%emt 0:00:51]} Bxc4 {[%emt 0:01:13]} 28. Ndxc4 {[%emt 0:00:21]} f6 {[%emt 0:01:27]} 29. Nd3 {[%emt 0:01:07]} Qa6 {[%emt 0:01:24]} 30. Nc5 {[%emt 0:01:14]} Qxa2 {[%emt 0:01:21]} 31. Qxb7 {[%emt 0:00:37]} Re8 {[%emt 0:00:40]} 32. Qxb4 {[%emt 0:00:39]} Qa7 {[%emt 0:00:35]} 33. Ra1 {[%emt 0:00:38]} Qc7 {[%emt 0:00:23]} 34. Qb7 {[%emt 0:01:25]} Qxb7 {[%emt 0:00:16]} 35. Nxb7 {[%emt 0:00:07]} Rb8 {[%emt 0:02:20]} 36. Ncd6 {[%emt 0:00:30]} Kf8 {[%emt 0:00:20]} 37. Ra2 {[%emt 0:00:20]} Ke7 {[%emt 0:00:15]} 38. Rfa1 {[%emt 0:00:15]} g5 {[%emt 0:00:38]} 39. Ra8 {[%emt 0:00:10]} Rxa8 {[%emt 0:00:04]} 40. Rxa8 {[%emt 0:00:09]} h5 {[%emt 0:00:06]} 41. Nf5+ {[%emt 0:00:25]} Ke6 {[%emt 0:00:12]} 42. Nbd6 {[%emt 0:00:05]} Kd5 {[%emt 0:00:22]} 43. e4+ {[%emt 0:00:44]} Ke6 {[%emt 0:00:39]} 44. b4 {[%emt 0:00:09]} Kd7 {[%emt 0:00:14]} 45. b5 {[%emt 0:00:27]} Kc7 {[%emt 0:00:11]} 46. e5 {[%emt 0:00:08]} fxe5 {[%emt 0:00:10]} 47. dxe5 {[%emt 0:00:06]} Kd7 {[%emt 0:00:14]} 48. b6 {[%emt 0:00:21]} g4 {[%emt 0:00:07]} 49. b7 {[%emt 0:00:09]} Ke6 {[%emt 0:00:03]} 50. b8=Q {[%emt 0:00:15]} Kxe5 {[%emt 0:00:24]} 51. Ra5+ {[%emt 0:00:25]} Kf4 {[%emt 0:00:13]} 52. Nf7+ {[%emt 0:00:33]} Ke4 {[%emt 0:00:12]} 53. Qb4+ {[%emt 0:00:20]} Kd3 {[%emt 0:00:11]} 54. Ra3+ {[%emt 0:00:09]} Kc2 {[%emt 0:00:18]} 55. Qb3+ {[%emt 0:00:22]} Kd2 {[%emt 0:00:14]} 56. Qb2+ {[%emt 0:00:18]} Ke1 {[%emt 0:00:14]} 57. Ra1# {[%emt 0:00:07]} 1-0

[Event "DVM U10 2024"]
[Site "Duesseldorf"]
[Date "2024.12.27"]
[Round "1"]
[White "Stopp, Bruno"]
[Black "Horn, Philipp"]
[Result "1-0"]
[ECO "C50"]
[WhiteElo "1519"]
[BlackElo "988"]
[Annotator "NA RC"]
[PlyCount "49"]
[EventDate "2024.12.23"]
[EventType "team-tourn"]
[EventRounds "7"]
[EventCountry "GER"]
[SourceTitle "playchess.com"]
[Source "ChessBase"]
[SourceQuality "1"]
[TimeControl "3300+5"]

1. e4 {[%emt 0:00:04]} e5 {[%emt 0:00:04]} 2. Nf3 {[%emt 0:00:05]} Nc6 {[%emt 0:00:09]} 3. Bc4 {[%emt 0:00:07]} Bc5 {[%emt 0:00:09]} 4. d3 {[%emt 0:00:06]} Nf6 {[%emt 0:00:10]} 5. Nc3 {[%emt 0:00:10]} d6 {[%emt 0:00:11]} 6. Bg5 {[%emt 0:00:14]} h6 {[%emt 0:00:07]} 7. Bxf6 {[%emt 0:00:19]} Qxf6 {[%emt 0:00:11]} 8. Nd5 {[%emt 0:00:04]} Qd8 {[%emt 0:00:16]} 9. c3 {[%emt 0:00:19]} Be6 {[%emt 0:00:43]} 10. h3 {[%emt 0:01:43]} Bxd5 {[%emt 0:01:25]} 11. Bxd5 {[%emt 0:00:15]} Qd7 {[%emt 0:00:31]} 12. O-O {[%emt 0:00:16]} O-O-O {[%emt 0:00:09]} 13. b4 {[%emt 0:00:16]} Bb6 {[%emt 0:00:15]} 14. a4 {[%emt 0:00:05]} a6 {[%emt 0:00:21]} 15. b5 {[%emt 0:00:51]} Na5 {[%emt 0:01:22]} 16. bxa6 {[%emt 0:00:36]} bxa6 {[%emt 0:01:08]} 17. Rb1 {[%emt 0:00:59]} g6 {[%emt 0:00:51]} 18. d4 {[%emt 0:02:47]} exd4 {[%emt 0:00:53]} 19. cxd4 {[%emt 0:00:20]} f5 {[%emt 0:00:25]} 20. Qe2 {[%emt 0:00:40]} Qxa4 {[%emt 0:01:20]} 21. Rxb6 {[%emt 0:04:13]} cxb6 {[%emt 0:01:41]} 22. Qxa6+ {[%emt 0:00:09]} Kd7 {[%emt 0:00:04]} 23. Qa7+ {[%emt 0:02:19]} Kc8 {[%emt 0:02:05]} 24. Rc1+ {[%emt 0:00:00]} Nc4 {[%emt 0:00:57]} 25. Qb7# {[%emt 0:00:00]} 1-0

[Event "DVM U10 2024"]
[Site "Duesseldorf"]
[Date "2024.12.27"]
[Round "1"]
[White "Hantke, Florian"]
[Black "Hübner, Jakob"]
[Result "1-0"]
[ECO "B21"]
[WhiteElo "1517"]
[BlackElo "1045"]
[Annotator "NA RC"]
[PlyCount "85"]
[EventDate "2024.12.23"]
[EventType "team-tourn"]
[EventRounds "7"]
[EventCountry "GER"]
[SourceTitle "playchess.com"]
[Source "ChessBase"]
[SourceQuality "1"]
[TimeControl "3300+5"]

1. e4 {[%emt 0:00:03]} c5 {[%emt 0:00:07]} 2. d3 {[%emt 0:00:08]} e6 {[%emt 0:00:06]} 3. f4 {[%emt 0:00:03]} Nc6 {[%emt 0:00:16]} 4. Nf3 {[%emt 0:00:12]} d6 {[%emt 0:00:13]} 5. c3 {[%emt 0:00:21]} Qc7 {[%emt 0:00:08]} 6. Be2 {[%emt 0:00:10]} Nf6 {[%emt 0:00:07]} 7. Na3 {[%emt 0:00:09]} Be7 {[%emt 0:00:08]} 8. Nc2 {[%emt 0:00:08]} O-O {[%emt 0:00:07]} 9. O-O {[%emt 0:00:04]} a6 {[%emt 0:00:05]} 10. Qe1 {[%emt 0:00:20]} b5 {[%emt 0:00:08]} 11. Qg3 {[%emt 0:02:02]} Bb7 {[%emt 0:00:43]} 12. f5 {[%emt 0:00:18]} g6 {[%emt 0:00:44]} 13. Bg5 {[%emt 0:01:38]} Nh5 {[%emt 0:00:46]} 14. Qg4 {[%emt 0:00:37]} Bxg5 {[%emt 0:00:43]} 15. Nxg5 {[%emt 0:00:22]} exf5 {[%emt 0:00:36]} 16. exf5 {[%emt 0:00:14]} Ne5 {[%emt 0:00:24]} 17. Qh3 {[%emt 0:00:35]} Nf6 {[%emt 0:01:27]} 18. fxg6 {[%emt 0:00:19]} fxg6 {[%emt 0:00:28]} 19. Ne6 {[%emt 0:00:08]} Qc6 {[%emt 0:00:57]} 20. Nxf8 {[%emt 0:00:47]} Rxf8 {[%emt 0:00:10]} 21. Bf3 {[%emt 0:00:30]} Nxf3+ {[%emt 0:00:40]} 22. Rxf3 {[%emt 0:00:25]} c4 {[%emt 0:00:37]} 23. Ne3 {[%emt 0:01:25]} cxd3 {[%emt 0:00:15]} 24. Qe6+ {[%emt 0:00:12]} Kg7 {[%emt 0:01:20]} 25. Qe7+ {[%emt 0:00:11]} Rf7 {[%emt 0:00:12]} 26. Qe6 {[%emt 0:01:04]} a5 {[%emt 0:01:53]} 27. Rd1 {[%emt 0:00:49]} Qe4 {[%emt 0:00:29]} 28. Qxd6 {[%emt 0:01:31]} Ng4 {[%emt 0:00:36]} 29. Rxf7+ {[%emt 0:04:07]} Kxf7 {[%emt 0:00:13]} 30. Qd7+ {[%emt 0:00:12]} Kg8 {[%emt 0:00:21]} 31. Qxg4 {[%emt 0:00:39]} Qxe3+ {[%emt 0:01:20]} 32. Kh1 {[%emt 0:00:21]} h5 {[%emt 0:00:54]} 33. Qxg6+ {[%emt 0:00:15]} Kf8 {[%emt 0:00:27]} 34. Rf1+ {[%emt 0:00:35]} Ke7 {[%emt 0:00:44]} 35. Qf7+ {[%emt 0:00:04]} Kd6 {[%emt 0:00:33]} 36. Qf4+ {[%emt 0:02:38]} Qe5 {[%emt 0:00:57]} 37. Qxe5+ {[%emt 0:00:29]} Kxe5 {[%emt 0:00:25]} 38. Re1+ {[%emt 0:00:08]} Kf4 {[%emt 0:00:20]} 39. Kg1 {[%emt 0:03:54]} Kg4 {[%emt 0:00:23]} 40. Kf2 {[%emt 0:00:16]} Kf5 {[%emt 0:00:57]} 41. Ke3 {[%emt 0:00:25]} Be4 {[%emt 0:00:07]} 42. Kd4 {[%emt 0:00:22]} h4 {[%emt 0:01:57]} 43. Rf1+ {[%emt 0:00:37]} 1-0

[Event "DVM U10 2024"]
[Site "Duesseldorf"]
[Date "2024.12.27"]
[Round "1"]
[White "Dintinger, Ata Lucien"]
[Black "Hornych, Fridtjof"]
[Result "1-0"]
[ECO "D40"]
[WhiteElo "1511"]
[BlackElo "1053"]
[Annotator "NA RC"]
[PlyCount "125"]
[EventDate "2024.12.23"]
[EventType "team-tourn"]
[EventRounds "7"]
[EventCountry "GER"]
[SourceTitle "playchess.com"]
[Source "ChessBase"]
[SourceQuality "1"]
[TimeControl "3300+5"]

1. e4 {[%emt 0:00:03]} c6 {[%emt 0:00:06]} 2. d4 {[%emt 0:00:08]} d5 {[%emt 0:00:10]} 3. exd5 {[%emt 0:00:02]} cxd5 {[%emt 0:00:04]} 4. c4 {[%emt 0:00:15]} Nf6 {[%emt 0:00:16]} 5. Nc3 {[%emt 0:00:07]} e6 {[%emt 0:00:38]} 6. Nf3 {[%emt 0:00:10]} Nc6 {[%emt 0:01:18]} 7. Be2 {[%emt 0:00:09]} dxc4 {[%emt 0:00:10]} 8. Bxc4 {[%emt 0:00:07]} Be7 {[%emt 0:00:48]} 9. O-O {[%emt 0:00:02]} O-O {[%emt 0:00:10]} 10. Re1 {[%emt 0:00:21]} a6 {[%emt 0:00:28]} 11. Be3 {[%emt 0:01:13]} b5 {[%emt 0:00:54]} 12. Bb3 {[%emt 0:00:05]} Bb7 {[%emt 0:00:19]} 13. Bc2 {[%emt 0:00:52]} Qc7 {[%emt 0:00:48]} 14. Bg5 {[%emt 0:02:27]} Nb4 {[%emt 0:01:19]} 15. Be4 {[%emt 0:01:11]} Nxe4 {[%emt 0:02:48]} 16. Nxe4 {[%emt 0:00:14]} Bxg5 {[%emt 0:03:55]} 17. Nfxg5 {[%emt 0:00:24]} h6 {[%emt 0:01:52]} 18. Nf3 {[%emt 0:00:41]} Rac8 {[%emt 0:02:10]} 19. Re2 {[%emt 0:03:00]} Nd5 {[%emt 0:01:59]} 20. Nc5 {[%emt 0:04:15]} Nf4 {[%emt 0:03:34]} 21. Rc2 {[%emt 0:00:22]} Bxf3 {[%emt 0:04:05]} 22. Qxf3 {[%emt 0:00:13]} Nd5 {[%emt 0:00:34]} 23. Qe4 {[%emt 0:01:00]} Qd6 {[%emt 0:01:34]} 24. Qe5 {[%emt 0:01:29]} Qxe5 {[%emt 0:00:49]} 25. dxe5 {[%emt 0:00:08]} Rc6 {[%emt 0:00:37]} 26. a3 {[%emt 0:00:36]} Rfc8 {[%emt 0:00:46]} 27. Rac1 {[%emt 0:00:07]} Nf4 {[%emt 0:01:04]} 28. b4 {[%emt 0:04:54]} a5 {[%emt 0:02:13]} 29. Rd2 {[%emt 0:02:28]} axb4 {[%emt 0:00:49]} 30. axb4 {[%emt 0:00:28]} Nd5 {[%emt 0:00:18]} 31. Rb2 {[%emt 0:00:23]} Nxb4 {[%emt 0:00:34]} 32. Rxb4 {[%emt 0:00:10]} Rxc5 {[%emt 0:00:15]} 33. Rxc5 {[%emt 0:00:14]} Rxc5 {[%emt 0:00:34]} 34. f4 {[%emt 0:00:02]} Kf8 {[%emt 0:00:18]} 35. Kf2 {[%emt 0:00:08]} Ke7 {[%emt 0:00:29]} 36. Ke3 {[%emt 0:00:05]} Kd7 {[%emt 0:01:13]} 37. Rd4+ {[%emt 0:02:15]} Rd5 {[%emt 0:00:56]} 38. Rb4 {[%emt 0:00:45]} Kc6 {[%emt 0:00:17]} 39. Rb1 {[%emt 0:00:19]} Kc5 {[%emt 0:00:35]} 40. Rc1+ {[%emt 0:00:27]} Kb4 {[%emt 0:00:14]} 41. Rb1+ {[%emt 0:00:04]} Kc3 {[%emt 0:00:22]} 42. Rc1+ {[%emt 0:00:19]} Kb2 {[%emt 0:00:17]} 43. Rc7 {[%emt 0:00:11]} b4 {[%emt 0:01:00]} 44. Rxf7 {[%emt 0:00:28]} b3 {[%emt 0:00:19]} 45. Rxg7 {[%emt 0:01:57]} Kb1 {[%emt 0:00:25]} 46. Rg6 {[%emt 0:00:16]} b2 {[%emt 0:00:15]} 47. Rxe6 {[%emt 0:00:09]} Ra5 {[%emt 0:00:53]} 48. Rb6 {[%emt 0:00:57]} Ka1 {[%emt 0:00:25]} 49. e6 {[%emt 0:00:09]} Ra8 {[%emt 0:00:28]} 50. f5 {[%emt 0:00:19]} b1=Q {[%emt 0:00:32]} 51. Rxb1+ {[%emt 0:00:09]} Kxb1 {[%emt 0:00:08]} 52. Ke4 {[%emt 0:00:06]} Kc2 {[%emt 0:02:11]} 53. f6 {[%emt 0:00:00]} Kc3 {[%emt 0:00:29]} 54. f7 {[%emt 0:01:14]} Rf8 {[%emt 0:00:14]} 55. e7 {[%emt 0:00:11]} Rxf7 {[%emt 0:00:38]} 56. e8=Q {[%emt 0:00:12]} Rf1 {[%emt 0:01:00]} 57. Qc6+ {[%emt 0:00:06]} Kd2 {[%emt 0:00:33]} 58. Qxh6+ {[%emt 0:00:14]} Kc3 {[%emt 0:00:29]} 59. g4 {[%emt 0:00:10]} Re1+ {[%emt 0:00:27]} 60. Kf5 {[%emt 0:00:30]} Rf1+ {[%emt 0:00:59]} 61. Kg6 {[%emt 0:00:12]} Kd4 {[%emt 0:00:14]} 62. h4 {[%emt 0:00:08]} Ke5 {[%emt 0:00:12]} 63. Qe3+ {[%emt 0:00:03]} 1-0

[Event "DVM U10 2024"]
[Site "Duesseldorf"]
[Date "2024.12.27"]
[Round "1"]
[White "Liu, Yichen"]
[Black "Krupp, Jonathan"]
[Result "1-0"]
[ECO "C44"]
[WhiteElo "1500"]
[BlackElo "941"]
[Annotator "NA RC"]
[PlyCount "103"]
[EventDate "2024.12.23"]
[EventType "team-tourn"]
[EventRounds "7"]
[EventCountry "GER"]
[SourceTitle "playchess.com"]
[Source "ChessBase"]
[SourceQuality "1"]
[TimeControl "3300+5"]

1. e4 {[%emt 0:00:03]} e5 {[%emt 0:00:01]} 2. Nf3 {[%emt 0:00:12]} Nc6 {[%emt 0:00:08]} 3. d4 {[%emt 0:00:06]} Bd6 {[%emt 0:00:21]} 4. d5 {[%emt 0:00:22]} Nce7 {[%emt 0:00:35]} 5. Nc3 {[%emt 0:00:13]} Nf6 {[%emt 0:00:20]} 6. Bg5 {[%emt 0:00:12]} Ng6 {[%emt 0:00:39]} 7. Bd3 {[%emt 0:00:40]} h6 {[%emt 0:00:17]} 8. Be3 {[%emt 0:00:25]} b6 {[%emt 0:00:45]} 9. O-O {[%emt 0:00:37]} O-O {[%emt 0:00:12]} 10. Qe2 {[%emt 0:01:06]} a6 {[%emt 0:00:57]} 11. Nd2 {[%emt 0:01:44]} Qe7 {[%emt 0:01:52]} 12. Nb3 {[%emt 0:00:16]} Qd8 {[%emt 0:01:40]} 13. h3 {[%emt 0:02:06]} Re8 {[%emt 0:02:06]} 14. Rfe1 {[%emt 0:00:58]} Bb7 {[%emt 0:01:32]} 15. a4 {[%emt 0:01:17]} a5 {[%emt 0:04:42]} 16. Nb5 {[%emt 0:02:49]} Bb4 {[%emt 0:03:40]} 17. Bd2 {[%emt 0:00:55]} Nf4 {[%emt 0:01:28]} 18. Qd1 {[%emt 0:01:07]} Nxd3 {[%emt 0:01:49]} 19. cxd3 {[%emt 0:00:15]} Bxd2 {[%emt 0:00:04]} 20. Qxd2 {[%emt 0:00:24]} c6 {[%emt 0:00:20]} 21. Nd6 {[%emt 0:00:35]} Rf8 {[%emt 0:00:44]} 22. Nxb7 {[%emt 0:00:11]} Qc7 {[%emt 0:00:33]} 23. dxc6 {[%emt 0:00:31]} Qxc6 {[%emt 0:01:24]} 24. N7xa5 {[%emt 0:00:15]} bxa5 {[%emt 0:00:21]} 25. Nxa5 {[%emt 0:00:36]} Qb6 {[%emt 0:01:01]} 26. Nc4 {[%emt 0:00:19]} Qc7 {[%emt 0:01:53]} 27. Rec1 {[%emt 0:00:25]} Qb8 {[%emt 0:01:20]} 28. Qc3 {[%emt 0:00:41]} d6 {[%emt 0:02:13]} 29. f3 {[%emt 0:02:20]} Rc8 {[%emt 0:00:52]} 30. Qa3 {[%emt 0:01:01]} Ne8 {[%emt 0:00:49]} 31. Qc3 {[%emt 0:01:19]} Qa7+ {[%emt 0:04:17]} 32. Kh1 {[%emt 0:00:45]} Qb8 {[%emt 0:01:17]} 33. Qd2 {[%emt 0:00:42]} Rc6 {[%emt 0:01:20]} 34. Kh2 {[%emt 0:01:39]} Qd8 {[%emt 0:00:57]} 35. b3 {[%emt 0:01:03]} Rac8 {[%emt 0:01:10]} 36. Ne3 {[%emt 0:00:33]} Nf6 {[%emt 0:02:34]} 37. Rxc6 {[%emt 0:00:27]} Rxc6 {[%emt 0:00:18]} 38. Rc1 {[%emt 0:00:09]} Rb6 {[%emt 0:00:56]} 39. Qc3 {[%emt 0:00:53]} Rb8 {[%emt 0:01:08]} 40. a5 {[%emt 0:01:38]} Ra8 {[%emt 0:00:31]} 41. b4 {[%emt 0:00:17]} Qd7 {[%emt 0:00:58]} 42. Nc4 {[%emt 0:00:20]} Rb8 {[%emt 0:00:39]} 43. Nb6 {[%emt 0:00:53]} Qb5 {[%emt 0:00:57]} 44. Qc4 {[%emt 0:00:35]} Qe8 {[%emt 0:00:43]} 45. Qc6 {[%emt 0:00:37]} Qe6 {[%emt 0:01:13]} 46. a6 {[%emt 0:00:24]} Qa2 {[%emt 0:00:49]} 47. b5 {[%emt 0:00:55]} Qa5 {[%emt 0:00:34]} 48. Nd5 {[%emt 0:02:24]} Nxd5 {[%emt 0:00:15]} 49. exd5 {[%emt 0:00:23]} Rxb5 {[%emt 0:00:06]} 50. a7 {[%emt 0:00:50]} Rb6 {[%emt 0:01:33]} 51. a8=Q+ {[%emt 0:00:33]} Rb8 {[%emt 0:00:30]} 52. Qxa5 {[%emt 0:00:29]} 1-0

[Event "DVM U10 2024"]
[Site "Duesseldorf"]
[Date "2024.12.27"]
[Round "1"]
[White "Hu, Yinuo"]
[Black "Ahmadov, Ahmad"]
[Result "0-1"]
[ECO "C90"]
[WhiteElo "1495"]
[BlackElo "1663"]
[Annotator "NA RC"]
[PlyCount "50"]
[EventDate "2024.12.23"]
[EventType "team-tourn"]
[EventRounds "7"]
[EventCountry "GER"]
[SourceTitle "playchess.com"]
[Source "ChessBase"]
[SourceQuality "1"]
[TimeControl "3300+5"]

1. e4 {[%emt 0:00:05]} e5 {[%emt 0:00:00]} 2. Nf3 {[%emt 0:00:11]} Nc6 {[%emt 0:00:06]} 3. Bb5 {[%emt 0:00:06]} a6 {[%emt 0:00:08]} 4. Ba4 {[%emt 0:00:05]} Nf6 {[%emt 0:00:07]} 5. d3 {[%emt 0:00:11]} b5 {[%emt 0:00:20]} 6. Bb3 {[%emt 0:00:23]} d6 {[%emt 0:00:21]} 7. c3 {[%emt 0:00:06]} Be7 {[%emt 0:00:22]} 8. Nbd2 {[%emt 0:00:17]} O-O {[%emt 0:00:23]} 9. O-O {[%emt 0:00:21]} Bb7 {[%emt 0:00:22]} 10. Re1 {[%emt 0:00:25]} Qd7 {[%emt 0:00:32]} 11. Nf1 {[%emt 0:00:23]} Na5 {[%emt 0:00:08]} 12. Bc2 {[%emt 0:00:15]} c5 {[%emt 0:01:27]} 13. Ng3 {[%emt 0:01:13]} Rfe8 {[%emt 0:01:31]} 14. Bd2 {[%emt 0:02:11]} Bf8 {[%emt 0:02:11]} 15. Bg5 {[%emt 0:02:23]} Qe6 {[%emt 0:02:30]} 16. Qd2 {[%emt 0:03:27]} h6 {[%emt 0:01:02]} 17. Be3 {[%emt 0:00:23]} Ng4 {[%emt 0:00:16]} 18. c4 {[%emt 0:02:07]} Nxe3 {[%emt 0:00:43]} 19. fxe3 {[%emt 0:01:54]} Nc6 {[%emt 0:00:53]} 20. Bb3 {[%emt 0:02:20]} b4 {[%emt 0:00:33]} 21. d4 {[%emt 0:02:47]} Na5 {[%emt 0:03:00]} 22. d5 {[%emt 0:01:05]} Qd7 {[%emt 0:01:53]} 23. Nf5 {[%emt 0:02:11]} g6 {[%emt 0:01:15]} 24. Ng3 {[%emt 0:00:33]} Nxb3 {[%emt 0:00:09]} 25. axb3 {[%emt 0:00:16]} a5 {[%emt 0:00:33]} 0-1

[Event "DVM U10 2024"]
[Site "Duesseldorf"]
[Date "2024.12.27"]
[Round "1"]
[White "Huang, Flora Yueya"]
[Black "Jiang, Lucas"]
[Result "1-0"]
[ECO "A34"]
[WhiteElo "1481"]
[BlackElo "2261"]
[Annotator "RC"]
[PlyCount "99"]
[EventDate "2024.12.23"]
[EventType "team-tourn"]
[EventRounds "7"]
[EventCountry "GER"]
[SourceTitle "playchess.com"]
[Source "ChessBase"]
[SourceQuality "1"]
[TimeControl "3300+5"]

1. d4 {[%emt 0:00:04]} Nf6 {[%emt 0:00:24]} 2. c4 {[%emt 0:00:06]} c5 {[%emt 0:00:53]} 3. Nf3 {[%emt 0:00:47]} Nc6 {[%emt 0:00:07]} 4. Nc3 {[%emt 0:00:42]} e6 {[%emt 0:00:58]} 5. Bf4 {[%emt 0:00:16]} d5 {[%emt 0:00:27]} 6. e3 {[%emt 0:03:31]} Bd6 {[%emt 0:01:15]} 7. Bxd6 {[%emt 0:00:20]} Qxd6 {[%emt 0:00:11]} 8. dxc5 {[%emt 0:01:09]} Qxc5 {[%emt 0:00:48]} 9. cxd5 {[%emt 0:00:07]} Nxd5 {[%emt 0:00:52]} 10. Nxd5 {[%emt 0:00:32]} exd5 {[%emt 0:01:24]} 11. a3 {[%emt 0:01:15]} O-O {[%emt 0:00:37]} 12. Bd3 {[%emt 0:00:16]} Bg4 {[%emt 0:00:48]} 13. h3 {[%emt 0:00:18]} Bh5 {[%emt 0:00:09]} 14. O-O {[%emt 0:00:49]} Bg6 {[%emt 0:01:02]} 15. Bxg6 {[%emt 0:02:22]} fxg6 {[%emt 0:00:40]} 16. Rc1 {[%emt 0:00:11]} Qd6 {[%emt 0:01:01]} 17. Qb3 {[%emt 0:00:21]} Na5 {[%emt 0:01:29]} 18. Qb5 {[%emt 0:01:30]} b6 {[%emt 0:00:49]} 19. Rfd1 {[%emt 0:00:16]} Rf5 {[%emt 0:00:22]} 20. b4 {[%emt 0:02:43]} a6 {[%emt 0:01:39]} 21. Qd3 {[%emt 0:00:58]} Nc6 {[%emt 0:01:36]} 22. e4 {[%emt 0:01:58]} Ne5 {[%emt 0:01:47]} 23. Nxe5 {[%emt 0:00:16]} Rxe5 {[%emt 0:00:30]} 24. f4 {[%emt 0:00:44]} Ree8 {[%emt 0:02:14]} 25. Qxd5+ {[%emt 0:01:25]} Qxd5 {[%emt 0:00:34]} 26. exd5 {[%emt 0:00:06]} Rf8 {[%emt 0:00:22]} 27. g3 {[%emt 0:00:20]} Rad8 {[%emt 0:00:11]} 28. Rc6 {[%emt 0:00:43]} Rf6 {[%emt 0:00:19]} 29. d6 {[%emt 0:01:48]} Rb8 {[%emt 0:01:05]} 30. Rc7 {[%emt 0:00:09]} Rf7 {[%emt 0:01:54]} 31. d7 {[%emt 0:00:34]} Rd8 {[%emt 0:00:28]} 32. Rd6 {[%emt 0:00:41]} a5 {[%emt 0:00:36]} 33. b5 {[%emt 0:02:44]} Kf8 {[%emt 0:00:34]} 34. Rxb6 {[%emt 0:00:49]} Rfxd7 {[%emt 0:00:07]} 35. Rxd7 {[%emt 0:00:06]} Rxd7 {[%emt 0:02:54]} 36. Ra6 {[%emt 0:00:53]} Rb7 {[%emt 0:00:05]} 37. Rxa5 {[%emt 0:00:05]} Ke7 {[%emt 0:00:05]} 38. a4 {[%emt 0:00:03]} Kd6 {[%emt 0:00:06]} 39. Kf2 {[%emt 0:00:26]} Kc5 {[%emt 0:00:31]} 40. Ra6 {[%emt 0:00:12]} Rd7 {[%emt 0:01:43]} 41. b6 {[%emt 0:01:44]} Rb7 {[%emt 0:00:44]} 42. a5 {[%emt 0:00:06]} Kc6 {[%emt 0:01:02]} 43. Ra8 {[%emt 0:01:29]} h6 {[%emt 0:01:15]} 44. Kf3 {[%emt 0:01:19]} h5 {[%emt 0:03:53]} 45. Rc8+ {[%emt 0:01:29]} Kb5 {[%emt 0:02:35]} 46. Rc7 {[%emt 0:00:00]} Ka6 {[%emt 0:00:29]} 47. Rxb7 {[%emt 0:00:00]} Kxb7 {[%emt 0:00:39]} 48. Ke4 {[%emt 0:00:00]} Kc6 {[%emt 0:01:17]} 49. Ke5 {[%emt 0:00:00]} Kb7 {[%emt 0:01:01]} 50. Ke6 {[%emt 0:00:00]} 1-0

[Event "DVM U10 2024"]
[Site "Duesseldorf"]
[Date "2024.12.27"]
[Round "1"]
[White "Graf, Tom"]
[Black "Pereira, Jefferson Luis de S."]
[Result "1-0"]
[ECO "C55"]
[WhiteElo "1456"]
[BlackElo "1932"]
[Annotator "RC"]
[PlyCount "59"]
[EventDate "2024.12.23"]
[EventType "team-tourn"]
[EventRounds "7"]
[EventCountry "GER"]
[SourceTitle "playchess.com"]
[Source "ChessBase"]
[SourceQuality "1"]
[TimeControl "3300+5"]

1. e4 {[%emt 0:00:04]} e5 {[%emt 0:00:04]} 2. Nf3 {[%emt 0:00:13]} Nc6 {[%emt 0:00:06]} 3. Bc4 {[%emt 0:00:11]} Nf6 {[%emt 0:00:05]} 4. Nc3 {[%emt 0:00:58]} Nxe4 {[%emt 0:00:09]} 5. Nxe4 {[%emt 0:00:15]} d5 {[%emt 0:00:05]} 6. Bd3 {[%emt 0:00:16]} f5 {[%emt 0:00:07]} 7. Bb5 {[%emt 0:04:49]} fxe4 {[%emt 0:01:22]} 8. Nxe5 {[%emt 0:03:15]} Bd6 {[%emt 0:00:18]} 9. Qh5+ {[%emt 0:02:45]} g6 {[%emt 0:01:48]} 10. Nxg6 {[%emt 0:00:48]} hxg6 {[%emt 0:01:58]} 11. Qxh8+ {[%emt 0:00:27]} Bf8 {[%emt 0:00:24]} 12. h4 {[%emt 0:07:12]} Qe7 {[%emt 0:00:25]} 13. h5 {[%emt 0:01:15]} g5 {[%emt 0:00:50]} 14. h6 {[%emt 0:03:58]} Bf5 {[%emt 0:00:14]} 15. Qc3 {[%emt 0:06:47]} Qd7 {[%emt 0:00:35]} 16. Bxc6 {[%emt 0:00:25]} bxc6 {[%emt 0:00:18]} 17. Qe5+ {[%emt 0:00:52]} Be7 {[%emt 0:00:37]} 18. h7 {[%emt 0:00:38]} Bxh7 {[%emt 0:03:09]} 19. Rxh7 {[%emt 0:00:23]} Qd6 {[%emt 0:02:37]} 20. Rh8+ {[%emt 0:00:26]} Kd7 {[%emt 0:00:21]} 21. Qxd6+ {[%emt 0:00:27]} cxd6 {[%emt 0:00:39]} 22. Rxa8 {[%emt 0:00:25]} Ke6 {[%emt 0:00:24]} 23. Rxa7 {[%emt 0:00:40]} g4 {[%emt 0:00:41]} 24. d3 {[%emt 0:00:13]} Bh4 {[%emt 0:00:20]} 25. dxe4 {[%emt 0:00:20]} dxe4 {[%emt 0:00:18]} 26. Be3 {[%emt 0:00:37]} g3 {[%emt 0:00:17]} 27. fxg3 {[%emt 0:01:42]} Bxg3+ {[%emt 0:00:09]} 28. Ke2 {[%emt 0:00:38]} c5 {[%emt 0:00:23]} 29. Ra6 {[%emt 0:01:48]} Ke5 {[%emt 0:00:15]} 30. Rd1 {[%emt 0:02:21]} 1-0